bitfinex/quotes_ETHUSD_20260202
["timestamp","ask_amount","ask_price","bid_price","bid_amount"]
[1770032350636,11.74450288,2291.7,2290.6,0.001]
[1770032350859,11.73747654,2291.7,2290.6,0.001]
[1770032351058,11.74450288,2291.5,2290.6,0.001]
[1770032351362,12.65950288,2291.5,2290.6,0.001]
[1770032351562,12.65950288,2291.5,2290.8,0.001]
[1770032353348,0.915,2291.5,2290.8,0.001]
[1770032354256,1.17374765,2291.6,2290.8,0.001]
[1770032356044,0.915,2291.7,2290.8,0.001]
[1770032356246,0.915,2291.7,2290.8,12.03965613]
[1770032358671,12.65950288,2291.7,2290.8,0.001]
[1770032360246,0.915,2291.7,2290.8,12.03965613]
[1770032364650,0.915,2291.7,2291.0,0.001]
[1770032365052,0.0011,2291.6,2291.0,0.001]
[1770032367676,11.74560288,2291.6,2291.0,0.001]
[1770032367880,1.26606029,2291.5,2291.0,0.001]
[1770032371574,0.0011,2291.6,2291.0,0.001]
[1770032372756,11.74560288,2291.6,2291.0,0.001]
[1770032373280,11.74450288,2291.4,2290.8,0.001]
[1770032373452,11.74450288,2291.4,2290.2,3.11181848]
[1770032373453,11.74450288,2290.9,2289.9,12.03865613]
[1770032373654,13.83395317,2290.8,2290.1,0.0008]
[1770032374680,13.83395317,2290.8,2289.6,12.03965613]
[1770032374681,11.74450288,2290.2,2289.6,0.001]
[1770032374884,0.1024,2290.1,2289.6,0.001]
[1770032375083,12.65950288,2290.2,2289.6,0.001]
[1770032375084,0.915,2290.2,2289.6,0.001]
[1770032376188,0.0011,2291.6,2290.3,12.03865613]
[1770032376482,0.0011,2291.6,2290.4,12.03865613]
[1770032377196,0.0011,2291.6,2290.6,12.03865613]
[1770032377407,0.0011,2291.6,2290.8,12.03865613]
[1770032377757,0.0011,2291.6,2290.9,0.73573082]
[1770032378061,0.0011,2291.6,2291.0,11.90740369]
[1770032378261,0.0011,2291.5,2291.1,1.19074037]
[1770032379189,0.0011,2291.6,2291.2,0.73573082]
[1770032379390,0.0011,2291.6,2291.1,1.19074037]
[1770032381778,0.0011,2291.6,2291.1,13.09814406]
[1770032382457,0.0011,2291.7,2291.1,13.09814406]
[1770032382662,0.0011,2291.7,2291.2,1.30981441]
[1770032383592,13.31052106,2292.6,2291.2,1.30981441]
[1770032383593,0.916,2292.6,2291.3,11.90740369]
[1770032385767,0.916,2292.6,2291.4,11.90740369]
[1770032386397,13.31052106,2292.6,2291.4,11.90740369]
[1770032386694,1.33116211,2292.5,2291.5,2.94074037]
[1770032387894,1.33116211,2292.5,2291.5,14.84814406]
[1770032388092,0.0011,2292.7,2291.5,14.84814406]
[1770032389497,0.0011,2292.7,2291.7,12.76358392]
[1770032389678,0.0011,2292.7,2291.7,13.67858392]
[1770032390197,0.0011,2292.7,2291.7,14.76947262]
[1770032390393,0.0011,2292.7,2291.7,14.76947698]
[1770032390695,0.0011,2292.7,2291.9,12.76358392]
[1770032391174,0.40382842,2293.0,2292.0,12.76358392]
[1770032391493,0.40382842,2293.0,2291.8,1.4769477]
[1770032391494,0.003,2293.8,2292.2,12.76358392]
[1770032391672,0.003,2293.8,2292.4,12.76358392]
[1770032391866,0.0011,2293.5,2292.4,12.76358392]
[1770032392070,0.0011,2293.5,2292.6,12.76358392]
[1770032392270,0.003,2293.8,2292.7,12.76358392]
[1770032392495,0.003,2293.8,2292.9,12.76358392]
[1770032392712,12.22895678,2293.8,2292.5,2.92691658]
[1770032392992,12.22595678,2293.6,2292.4,0.915]
[1770032394175,1.22289568,2293.7,2292.4,13.67858392]
[1770032394486,0.003,2293.8,2292.4,13.67858392]
[1770032394798,0.003,2293.8,2292.1,4.36279925]
[1770032394799,0.003,2293.8,2292.6,12.76358392]
[1770032395564,12.22895678,2293.8,2292.3,12.76358392]
[1770032395765,12.22895678,2293.8,2292.3,13.67858392]
[1770032395993,13.54035246,2293.7,2292.3,15.04644231]
[1770032396578,1.31439568,2293.7,2292.3,15.04644231]
[1770032396798,0.003,2293.8,2292.3,15.7748398]
[1770032397102,0.003,2293.8,2292.4,13.49198141]
[1770032397802,0.003,2293.8,2292.6,12.76358392]
[1770032398014,0.003,2293.8,2292.8,12.76358392]
[1770032398205,0.003,2293.8,2292.7,0.2335703]
[1770032398206,0.003,2293.8,2292.9,14.97829934]
[1770032399080,0.003,2293.8,2292.9,2.21471542]
[1770032399280,0.003,2293.8,2292.9,0.915]
[1770032400405,12.22595678,2293.2,2292.0,0.72839749]
[1770032400602,12.32835678,2293.3,2291.8,3.4832686]
[1770032400805,2.207,2293.2,2291.8,14.76990482]
[1770032401004,0.1024,2293.2,2291.8,14.76990482]
[1770032402018,25.383955,2293.1,2291.8,2.0063209]
[1770032402207,12.22595678,2292.8,2291.8,2.0063209]
[1770032402518,33.64666078,2292.5,2291.3,3.0]
[1770032402704,12.22595678,2292.5,2291.3,3.0]
[1770032402893,0.915,2292.9,2291.3,3.0]
[1770032402894,13.14095678,2292.9,2291.3,3.0]
[1770032403093,1.23283568,2293.1,2291.3,15.76358392]
[1770032403430,2.14783568,2293.1,2291.7,12.76358392]
[1770032403613,12.22595678,2293.7,2292.0,12.76458392]
[1770032403792,0.0011,2293.3,2292.0,12.76458392]
[1770032405218,16.353193,2293.2,2292.0,0.001]
[1770032405591,28.57914978,2293.2,2292.0,0.001]
[1770032405906,0.0011,2293.3,2292.0,0.001]
[1770032405907,12.22595678,2293.0,2292.0,0.001]
[1770032407116,12.22595678,2292.8,2292.0,0.001]
[1770032407316,2.132773,2292.7,2292.0,0.001]
[1770032407494,12.22595678,2292.8,2292.0,0.001]
[1770032407684,1.32433568,2292.7,2292.0,0.001]
[1770032407891,2.181,2292.8,2292.0,0.001]
[1770032408408,1.0174,2292.9,2292.0,0.001]
[1770032408616,13.294633,2292.8,2292.0,0.001]
[1770032408794,11.889802,2292.7,2292.0,0.001]
[1770032408989,11.889802,2292.7,2291.8,0.001]
[1770032408990,10.044802,2292.7,2291.8,0.001]
[1770032409222,13.65625251,2292.6,2291.8,0.001]
[1770032409524,12.65177231,2292.4,2290.9,12.06913539]
[1770032409726,15.175433,2292.3,2290.9,12.06913539]
[1770032409922,5.884758,2292.1,2290.9,12.06913539]
[1770032410122,0.915,2292.2,2290.9,12.06913539]
[1770032410323,13.56677231,2292.2,2290.8,0.001]
[1770032410541,9.81432,2292.0,2290.8,0.001]
[1770032411027,12.65177231,2292.0,2290.8,0.001]
[1770032411240,1.35667723,2292.1,2290.8,0.001]
[1770032411404,0.915,2292.2,2290.8,0.001]
[1770032411795,11.30138,2292.1,2290.8,0.001]
[1770032412037,9.772236,2292.1,2290.8,0.001]
[1770032412597,21.825607,2292.0,2290.8,0.001]
[1770032412830,0.915,2292.0,2290.8,0.001]
[1770032413126,1.35667723,2291.9,2290.8,0.001]
[1770032413305,10.960158,2291.8,2290.8,0.001]
[1770032414530,10.879507,2291.7,2290.8,0.001]
[1770032415499,0.1024,2291.8,2290.8,0.001]
[1770032415704,0.33980772,2291.8,2290.8,0.001]
[1770032415914,6.274656,2291.7,2290.8,0.001]
[1770032416106,0.33980772,2291.8,2290.8,0.001]
[1770032416306,2.95958,2291.7,2291.5,0.001]
[1770032416621,2.95958,2291.7,2290.8,12.07013539]
[1770032416622,0.32993877,2291.6,2290.8,12.07013539]
[1770032416940,0.915,2291.7,2291.3,0.001]
[1770032417233,12.65177231,2292.6,2291.3,0.001]
[1770032417433,3.160819,2292.5,2291.3,0.001]
[1770032417647,1.58125913,2292.4,2291.3,12.07013539]
[1770032417807,0.915,2292.5,2291.3,12.79816996]
[1770032418128,0.915,2292.5,2291.3,12.07013539]
[1770032418527,0.1024,2292.9,2291.3,12.07013539]
[1770032418823,2.53729,2292.6,2291.3,12.07013539]
[1770032419042,0.263969,2292.6,2291.5,12.06913539]
[1770032419201,3.498689,2292.6,2291.5,12.06913539]
[1770032419902,0.1024,2292.8,2291.5,12.06913539]
[1770032420107,2.356863,2292.7,2291.5,12.06913539]
[1770032420931,2.015852,2292.7,2291.5,12.06913539]
[1770032421130,2.388852,2292.7,2291.5,12.06913539]
[1770032421306,0.1024,2292.8,2291.6,1.32761489]
[1770032421307,0.2491252,2292.6,2291.6,1.32761489]
[1770032421503,14.324548,2292.7,2291.6,1.32761489]
[1770032422032,13.33599,2292.7,2291.6,1.32761489]
[1770032423217,19.43864531,2292.7,2291.6,1.32761489]
[1770032423412,9.620246,2292.6,2291.3,12.07013539]
[1770032424236,8.619753,2292.6,2291.3,12.07013539]
[1770032424843,12.75417231,2292.5,2291.3,0.001]
[1770032425055,12.65177231,2292.1,2290.8,0.001]
[1770032425204,12.65177231,2292.1,2290.8,12.07013539]
[1770032425205,13.168709,2291.9,2290.8,12.07013539]
[1770032425512,0.915,2292.0,2290.8,12.07013539]
[1770032426443,0.915,2292.0,2291.0,12.06913539]
[1770032426628,22.90177231,2292.9,2291.2,12.06913539]
[1770032426837,5.196699,2292.7,2291.2,12.06913539]
[1770032427045,12.39814116,2293.4,2291.7,12.06913539]
[1770032427349,12.39814116,2293.4,2291.9,12.06913539]
[1770032427350,0.1024,2293.2,2291.9,12.06913539]
[1770032427822,1.56507243,2294.1,2291.9,12.06913539]
[1770032427823,0.918,2293.8,2292.3,12.06913539]
[1770032428022,0.003,2293.8,2292.7,12.06913539]
[1770032431507,0.918,2294.3,2292.9,0.2335703]
[1770032431508,0.1054,2294.3,2292.9,0.2335703]
[1770032431735,0.003,2294.3,2293.2,12.06913539]
[1770032431942,0.003,2294.3,2293.1,0.2335703]
[1770032431943,0.003,2294.3,2293.4,12.06913539]
[1770032434041,0.1024,2295.1,2293.2,0.2335703]
[1770032434241,0.36466886,2295.3,2293.7,12.06913539]
[1770032434442,7.001911,2295.2,2293.9,12.06913539]
[1770032434648,0.36466886,2295.3,2293.9,12.06913539]
[1770032434649,17.989909,2295.0,2293.9,12.06913539]
[1770032434947,14.423555,2295.0,2293.9,12.06913539]
[1770032435321,14.423555,2295.0,2293.5,15.415]
[1770032435322,1.0174,2294.9,2293.5,12.06913539]
[1770032435557,12.640198,2294.8,2293.5,12.06913539]
[1770032435713,1.3657598,2294.7,2293.5,12.06913539]
[1770032436133,1.0174,2294.9,2293.5,12.06913539]
[1770032436514,1.0174,2294.9,2293.7,12.06913539]
[1770032436719,1.0174,2294.9,2293.7,12.60896413]
[1770032436948,0.915,2294.9,2293.9,12.06913539]
[1770032437336,0.915,2294.9,2293.5,12.06913539]
[1770032437531,0.915,2294.9,2293.7,12.06913539]
[1770032442739,0.915,2294.9,2293.7,12.60896413]
[1770032442946,0.915,2294.9,2293.7,12.06913539]
[1770032443658,0.915,2294.9,2293.7,12.07013539]
[1770032443869,0.0011,2294.7,2293.7,12.07013539]
[1770032444047,0.0011,2294.7,2293.8,1.32770489]
[1770032444246,0.36466886,2295.3,2294.0,12.63916703]
[1770032444443,0.36466886,2295.3,2293.9,0.25549772]
[1770032444444,1.56507243,2296.9,2295.2,0.2335703]
[1770032444445,0.40179516,2296.7,2295.2,0.2335703]
[1770032444774,0.0032,2296.0,2295.0,14.5]
[1770032444969,0.0011,2295.9,2295.1,2.77563291]
[1770032445175,0.0011,2295.9,2294.4,12.63916703]
[1770032445675,0.0011,2295.9,2294.4,27.13916703]
[1770032446166,0.0011,2295.9,2294.4,12.63916703]
[1770032446369,0.1024,2295.6,2294.4,12.63916703]
[1770032446569,12.23536599,2295.5,2294.0,12.63916703]
[1770032446775,0.1024,2295.3,2294.1,1.3553167]
[1770032446942,0.1024,2295.3,2294.0,12.63916703]
[1770032447350,1.2337766,2295.4,2294.0,12.63916703]
[1770032447555,0.1024,2295.6,2294.0,12.63916703]
[1770032448360,0.1024,2295.6,2294.0,12.63616703]
[1770032448668,0.1024,2295.7,2294.1,12.63916703]
[1770032448875,1.0164,2295.7,2294.3,12.3743856]
[1770032449076,1.0164,2295.7,2294.5,12.3743856]
[1770032449244,0.1024,2295.7,2294.5,12.3743856]
[1770032449445,0.914,2295.8,2294.5,12.3743856]
[1770032451170,11.72237709,2295.6,2293.7,0.67586346]
[1770032451369,5.80417971,2295.7,2293.7,12.3753856]
[1770032451370,9.81376888,2294.9,2293.7,12.3753856]
[1770032451888,8.984196,2294.8,2293.7,0.001]
[1770032452179,1.87979649,2294.7,2293.7,0.001]
[1770032452348,2.500772,2294.8,2293.7,0.001]
[1770032452548,0.914,2294.7,2293.7,0.001]
[1770032454686,9.81376888,2294.9,2293.7,0.001]
[1770032454872,0.914,2294.8,2293.7,0.001]
[1770032455060,1.98677689,2294.8,2293.7,0.001]
[1770032457150,1.98677689,2294.8,2293.9,0.001]
[1770032457355,0.914,2294.7,2293.9,0.001]
[1770032458108,1.07277689,2294.8,2293.9,0.001]
[1770032458293,0.914,2294.6,2293.9,0.001]
[1770032458781,1.07277689,2294.8,2293.9,0.001]
[1770032458981,2.00265458,2294.7,2293.9,0.001]
[1770032460880,0.914,2294.7,2293.9,0.001]
[1770032461396,10.71045,2294.4,2293.7,0.001]
[1770032461561,11.82477709,2294.1,2292.8,12.3743856]
[1770032461980,11.82477709,2294.1,2292.5,0.001]
[1770032461981,8.941127,2294.0,2292.5,12.3753856]
[1770032462183,0.914,2293.9,2292.5,12.3753856]
[1770032462489,0.914,2293.9,2292.5,0.001]
[1770032462490,12.794662,2293.7,2292.5,0.001]
[1770032462693,8.190743,2293.7,2292.5,0.001]
[1770032462863,0.914,2293.6,2292.5,12.3753856]
[1770032464356,0.914,2293.6,2292.5,0.001]
[1770032464765,0.914,2293.5,2292.5,0.001]
[1770032465267,0.914,2293.5,2291.8,13.58129914]
[1770032465268,0.1024,2293.2,2291.8,13.58129914]
[1770032465648,3.5317,2293.1,2291.8,13.58129914]
[1770032465913,24.00906,2292.9,2291.7,0.001]
[1770032466192,0.914,2292.8,2291.7,0.001]
[1770032466693,0.1024,2292.4,2291.7,0.001]
[1770032466897,13.32999161,2292.4,2290.8,0.001]
[1770032467203,7.770018,2292.0,2290.8,0.001]
[1770032467367,11.72237709,2292.1,2290.8,0.001]
[1770032467565,0.914,2292.0,2290.8,0.001]
[1770032467974,0.914,2291.9,2290.8,0.001]
[1770032468497,0.914,2291.9,2289.8,5.3312975]
[1770032468498,11.94671358,2291.4,2289.8,12.22724452]
[1770032468697,9.05406324,2291.5,2290.3,12.22724452]
[1770032468698,2.10007768,2291.3,2290.3,12.22724452]
[1770032468868,0.914,2291.5,2290.3,12.22724452]
[1770032469195,0.1024,2292.1,2290.3,12.22724452]
[1770032469364,0.915,2291.7,2290.3,12.22724452]
[1770032470066,11.121983,2291.6,2290.3,12.22724452]
[1770032470264,1.2036983,2291.5,2290.3,0.001]
[1770032470477,9.96906324,2291.7,2290.3,0.001]
[1770032470478,23.31967124,2291.2,2290.3,0.001]
[1770032470723,8.582877,2291.2,2290.3,0.001]
[1770032471085,19.89236458,2291.2,2289.8,0.001]
[1770032471313,20.376813,2291.1,2289.8,0.001]
[1770032471520,16.59067,2290.9,2289.8,0.001]
[1770032472090,10.416197,2290.9,2289.8,0.001]
[1770032473222,10.416197,2290.9,2289.6,0.001]
[1770032473223,0.1024,2290.8,2289.6,0.001]
[1770032473404,9.233197,2290.7,2289.6,0.001]
[1770032473603,0.9335597,2290.6,2289.6,0.001]
[1770032473802,9.541197,2290.7,2289.6,0.001]
[1770032474015,9.233197,2290.7,2289.6,0.001]
[1770032474208,7.733197,2290.7,2289.6,0.001]
[1770032475515,2.242125,2290.7,2289.6,0.001]
[1770032475720,9.28851574,2290.6,2289.6,0.001]
[1770032475925,9.05406324,2290.6,2289.6,0.001]
[1770032476296,7.669052,2290.7,2289.6,0.001]
[1770032476498,1.20491136,2291.1,2289.6,12.22724452]
[1770032476799,11.94671358,2291.5,2289.6,12.22724452]
[1770032476800,0.915,2291.0,2289.6,12.22724452]
[1770032477004,0.915,2291.0,2289.7,12.22624452]
[1770032478104,9.05406324,2291.8,2289.7,12.22624452]
[1770032478427,0.1024,2291.4,2289.7,12.22624452]
[1770032478605,9.05406324,2291.8,2290.1,12.22624452]
[1770032478820,5.25163494,2292.8,2289.8,0.2335703]
[1770032478821,0.35438342,2293.1,2290.5,12.22624452]
[1770032478998,5.43483,2292.8,2291.1,12.22624452]
[1770032479203,0.1024,2292.7,2291.1,12.22624452]
[1770032479397,2.189407,2292.6,2291.1,12.22624452]
[1770032479622,0.35438342,2293.1,2291.3,12.22624452]
[1770032479924,0.915,2292.5,2291.4,13.44886897]
[1770032480106,0.915,2292.5,2291.4,12.22624452]
[1770032481416,9.05406324,2292.1,2290.3,12.22624452]
[1770032481595,5.24840024,2292.7,2290.5,12.22624452]
[1770032481596,1.82040632,2292.0,2290.5,12.22624452]
[1770032481802,0.915,2292.4,2291.0,12.22624452]
[1770032482129,0.34956128,2293.0,2291.2,12.22624452]
[1770032482426,0.915,2292.8,2291.4,12.22624452]
[1770032482625,5.567762,2292.7,2291.4,12.22624452]
[1770032482824,3.531762,2292.7,2291.4,12.22624452]
[1770032482998,0.915,2292.8,2291.6,0.001]
[1770032484223,0.1035,2292.9,2291.6,12.22724452]
[1770032484528,0.915,2292.8,2291.7,1.22272445]
[1770032485029,0.0011,2292.9,2291.7,13.44896897]
[1770032486727,5.406254,2292.8,2291.7,1.22272445]
[1770032486936,5.406254,2292.8,2291.6,0.001]
[1770032487138,4.663407,2292.8,2291.6,0.001]
[1770032487428,3.533407,2292.8,2291.6,12.22724452]
[1770032487823,3.533407,2292.8,2291.6,0.001]
[1770032489144,2.265748,2292.8,2291.6,12.22724452]
[1770032489319,0.26164093,2292.8,2291.7,13.44896897]
[1770032489520,0.9161,2292.9,2291.7,13.44896897]
[1770032489736,2.229406,2292.8,2291.7,13.44896897]
[1770032490242,0.9161,2292.9,2291.7,13.44896897]
[1770032490243,0.915,2292.7,2291.7,13.44896897]
[1770032490549,0.9161,2292.9,2291.7,13.44896897]
[1770032490931,0.9161,2292.9,2291.8,1.3449969]
[1770032491426,0.9161,2292.9,2291.7,12.22624452]
[1770032491829,0.915,2292.8,2291.7,12.22624452]
[1770032494226,0.0011,2292.9,2291.7,12.22624452]
[1770032495531,0.0011,2292.6,2291.7,12.22624452]
[1770032496525,0.0011,2292.6,2291.6,0.001]
[1770032496728,0.0011,2292.6,2291.6,12.22724452]
[1770032497025,0.0011,2292.6,2291.7,13.44896897]
[1770032507276,10.364043,2292.5,2291.6,0.001]
[1770032507467,3.820342,2292.5,2291.6,0.001]
[1770032507975,3.009129,2292.5,2291.6,0.001]
[1770032508684,12.57627875,2292.6,2291.6,0.001]
[1770032508974,13.51760275,2292.5,2291.9,0.001]
[1770032509140,1.35297028,2292.4,2291.9,0.001]
[1770032509345,0.915,2292.3,2291.9,0.001]
[1770032510747,0.0011,2292.4,2291.9,0.001]
[1770032512848,0.0011,2292.4,2291.9,11.79493601]
[1770032513053,0.0011,2292.6,2291.9,11.79493601]
[1770032513271,0.0011,2292.8,2292.0,12.97342961]
[1770032518261,0.0011,2292.8,2291.9,0.001]
[1770032519884,0.0011,2292.8,2291.9,11.79493601]
[1770032521593,0.94198813,2292.7,2291.9,0.001]
[1770032521772,0.915,2292.6,2291.9,0.001]
[1770032521970,0.915,2292.6,2292.1,0.001]
[1770032522183,0.915,2292.6,2291.6,0.001]
[1770032522184,0.9419619,2292.5,2291.6,0.001]
[1770032522489,1.44321407,2292.4,2291.6,0.001]
[1770032522963,11.912282,2292.2,2291.6,0.001]
[1770032523161,1.44321407,2292.4,2291.6,0.001]
[1770032523361,3.903704,2292.5,2291.6,0.001]
[1770032523561,0.9161,2292.6,2291.6,0.001]
[1770032523562,0.94167365,2292.4,2291.6,0.001]
[1770032523763,2.855883,2292.5,2291.6,0.001]
[1770032523963,0.941674,2292.4,2291.6,0.001]
[1770032524190,4.883307,2292.5,2291.6,0.001]
[1770032524370,1.52142134,2292.4,2291.6,0.001]
[1770032524574,0.915,2292.4,2291.6,0.001]
[1770032526564,0.915,2292.3,2291.6,11.79493601]
[1770032526764,0.0011,2292.6,2291.6,11.79493601]
[1770032530595,0.0011,2292.6,2291.6,0.001]
[1770032530829,21.70985,2292.5,2291.6,0.001]
[1770032530998,0.0011,2292.6,2291.6,0.001]
[1770032531171,0.94125046,2292.5,2291.6,0.001]
[1770032531372,0.0011,2292.6,2291.6,0.001]
[1770032531572,0.94119975,2292.5,2291.6,0.001]
[1770032531793,0.0011,2292.6,2291.6,0.001]
[1770032531986,0.94120257,2292.5,2291.6,0.001]
[1770032532191,0.0011,2292.6,2291.6,0.001]
[1770032532373,0.94115416,2292.5,2291.6,0.001]
[1770032532581,0.0011,2292.6,2291.6,0.001]
[1770032532800,0.94115298,2292.5,2291.6,0.001]
[1770032533000,0.0011,2292.6,2291.6,0.001]
[1770032533298,0.94115315,2292.5,2291.6,0.001]
[1770032533503,0.0011,2292.6,2291.6,0.001]
[1770032533797,0.94111938,2292.5,2291.6,0.001]
[1770032534102,0.0011,2292.6,2291.6,0.001]
[1770032534304,0.9410756,2292.5,2291.6,0.001]
[1770032534483,1.35430435,2292.4,2291.6,0.001]
[1770032534685,1.35430435,2292.4,2291.8,0.001]
[1770032535003,1.35540435,2292.4,2291.8,0.001]
[1770032537408,13.95627228,2292.4,2291.8,0.001]
[1770032537999,13.95627228,2292.4,2291.6,0.001]
[1770032538000,12.60086793,2292.2,2291.6,0.001]
[1770032538178,12.60086793,2292.2,2291.4,0.001]
[1770032538179,14.399507,2292.0,2291.4,0.001]
[1770032538378,13.679289,2292.0,2291.4,0.001]
[1770032538612,12.057807,2292.0,2291.4,0.001]
[1770032539496,9.822094,2291.9,2291.4,0.001]
[1770032539699,2.24229619,2291.8,2291.4,0.001]
[1770032541607,13.650703,2291.7,2290.9,0.001]
[1770032541814,9.82735631,2291.3,2290.4,0.001]
[1770032542013,11.897333,2291.2,2290.4,0.001]
[1770032542191,0.915,2291.1,2290.4,0.001]
[1770032542397,0.915,2291.0,2290.4,0.001]
[1770032542888,0.915,2291.0,2290.0,0.001]
[1770032542889,25.76431993,2290.9,2290.0,0.001]
[1770032543082,12.491864,2290.8,2290.0,0.001]
[1770032543282,12.60086793,2290.9,2290.0,0.001]
[1770032543283,5.38622,2290.6,2290.0,0.001]
[1770032543532,12.417671,2290.4,2289.8,0.001]
[1770032543812,11.877064,2290.1,2289.6,0.001]
[1770032544110,9.82735631,2290.2,2288.6,0.001]
[1770032544111,4.711408,2289.9,2288.7,12.17442575]
[1770032546313,12.365928,2289.8,2288.6,0.001]
[1770032546622,4.666366,2289.6,2288.6,0.001]
[1770032546920,0.915,2289.5,2288.6,0.001]
[1770032547213,0.915,2289.5,2288.6,12.17542575]
[1770032547509,0.915,2289.5,2288.8,12.17542575]
[1770032547683,0.916,2289.4,2288.8,0.001]
[1770032549809,0.916,2289.4,2289.2,0.001]
[1770032550012,0.916,2289.4,2288.8,0.001]
[1770032550718,0.916,2289.4,2288.6,0.001]
[1770032550719,17.257686,2289.3,2288.6,0.001]
[1770032550907,10.74335631,2289.4,2288.6,0.001]
[1770032550908,4.776294,2289.1,2288.6,0.001]
[1770032551221,2.80010423,2289.2,2288.6,0.001]
[1770032551422,14.336986,2289.3,2288.6,0.001]
[1770032551722,12.606537,2289.3,2288.6,0.001]
[1770032552332,10.362759,2289.3,2288.6,0.001]
[1770032552527,0.916,2289.2,2288.6,12.17542575]
[1770032552728,0.916,2289.1,2288.6,12.17542575]
[1770032552923,0.916,2289.0,2288.6,12.17542575]
[1770032553337,0.916,2289.0,2288.6,0.001]
[1770032554613,0.916,2289.0,2288.4,0.001]
[1770032554922,10.74335631,2289.0,2288.4,0.001]
[1770032555128,1.07433563,2288.9,2288.4,0.001]
[1770032555310,10.501207,2288.9,2288.4,0.001]
[1770032556443,3.433752,2288.9,2288.2,0.001]
[1770032557128,2.865934,2288.9,2288.2,0.001]
[1770032557531,9.82735631,2289.5,2288.2,12.17542575]
[1770032557720,0.1024,2289.2,2288.2,13.39306832]
[1770032558104,0.916,2289.1,2288.2,13.39306832]
[1770032558308,0.916,2289.0,2288.2,13.39306832]
[1770032559736,9.82735631,2289.8,2288.2,13.39306832]
[1770032559928,3.11269527,2289.7,2288.4,12.50374608]
[1770032560513,1.14437901,2289.7,2288.4,12.50374608]
[1770032560908,0.22837901,2289.7,2288.4,12.50374608]
[1770032561710,0.22837901,2289.7,2288.4,12.50474608]
[1770032562047,0.0011,2288.8,2288.4,12.50474608]
[1770032562248,0.22837901,2289.7,2288.5,12.50374608]
[1770032562420,0.22837901,2289.7,2288.7,12.50374608]
[1770032562421,1.32555254,2289.7,2288.7,12.50374608]
[1770032562618,0.0011,2289.0,2288.7,12.50374608]
[1770032562923,1.32555254,2289.7,2288.7,12.50374608]
[1770032563827,1.32555254,2289.7,2288.4,0.001]
[1770032563828,10.022736,2289.4,2288.4,12.50474608]
[1770032564028,4.840324,2289.4,2288.4,12.50474608]
[1770032564411,2.378673,2289.4,2288.4,12.50474608]
[1770032564812,9.82735631,2289.5,2288.4,12.50474608]
[1770032565140,10.83292984,2289.5,2288.6,12.50374608]
[1770032566243,2.15274,2289.4,2288.6,12.50374608]
[1770032566625,0.916,2289.3,2288.6,12.50374608]
[1770032568626,0.916,2289.3,2288.5,1.25047461]
[1770032568824,0.916,2289.3,2288.4,12.70921286]
[1770032569143,0.22837901,2289.7,2288.4,12.70921286]
[1770032569343,0.916,2289.6,2288.4,12.70921286]
[1770032571219,0.22837901,2289.7,2288.4,12.70921286]
[1770032571419,0.22837901,2289.7,2288.6,12.70821286]
[1770032571648,0.9171,2290.0,2288.8,12.70821286]
[1770032572156,0.0011,2290.0,2288.8,12.70821286]
[1770032574854,0.0011,2289.4,2288.8,12.70821286]
[1770032575147,0.0011,2289.6,2288.8,12.70821286]
[1770032575748,0.0011,2289.6,2289.0,12.70821286]
[1770032575933,0.0011,2289.6,2289.2,12.70821286]
[1770032577928,0.0011,2290.0,2289.2,12.70821286]
[1770032581838,0.0011,2290.0,2288.6,0.001]
[1770032581839,19.36105639,2289.9,2288.6,12.70921286]
[1770032582146,22.2676197,2289.7,2288.6,12.70921286]
[1770032582347,12.44026339,2289.7,2288.6,1.27202129]
[1770032582548,12.44026339,2289.7,2288.6,0.001]
[1770032582729,0.0011,2290.0,2288.6,12.70921286]
[1770032582930,3.080979,2289.9,2288.6,12.70921286]
[1770032583135,2.850979,2289.9,2288.6,12.70921286]
[1770032583373,12.44026339,2289.7,2288.6,0.001]
[1770032583738,1.56467483,2291.0,2290.3,12.70821286]
[1770032583941,0.22817102,2291.2,2290.4,2.37156088]
[1770032584262,22.2676197,2291.4,2290.0,12.70821286]
[1770032584445,0.0011,2291.6,2290.0,1.54768884]
[1770032584446,12.44026339,2291.1,2290.0,1.54768884]
[1770032584652,12.44026339,2291.1,2289.9,2.46368884]
[1770032584853,12.44026339,2291.1,2290.0,1.54768884]
[1770032585162,9.08338333,2291.2,2289.7,1.54768884]
[1770032585163,6.5132,2290.9,2289.7,1.54768884]
[1770032585656,7.4292,2290.9,2289.6,12.70821286]
[1770032585834,1.98694634,2290.8,2289.7,1.50297461]
[1770032586261,9.08338333,2290.7,2289.7,1.50297461]
[1770032586465,9.08338333,2290.7,2289.4,0.916]
[1770032586655,21.52364672,2290.7,2289.4,0.916]
[1770032587261,0.0011,2289.7,2289.1,15.02974613]
[1770032587835,0.0011,2289.7,2289.1,2.32153327]
[1770032588153,0.0011,2289.7,2289.2,0.23215333]
[1770032590479,12.44026339,2290.4,2289.2,0.23215333]
[1770032590772,9.08448333,2290.7,2289.2,13.23158876]
[1770032590773,13.67918864,2290.7,2289.2,13.23158876]
[1770032590944,2.364717,2290.6,2289.2,13.23158876]
[1770032591647,13.67918864,2290.7,2289.2,15.55312203]
[1770032591843,1.5666135,2290.6,2289.3,1.5553122]
[1770032592168,12.76208864,2290.5,2289.2,0.23215333]
[1770032595348,12.76208864,2290.5,2289.2,2.5536866]
[1770032596067,12.76208864,2290.5,2289.2,0.23215333]
[1770032596242,12.76208864,2290.5,2289.2,2.5536866]
[1770032596449,12.76208864,2290.3,2289.2,2.5536866]
[1770032596846,12.76208864,2290.3,2289.1,2.32153327]
[1770032597041,12.76208864,2290.1,2288.9,2.32153327]
[1770032597249,13.67808864,2290.0,2288.9,2.32153327]